{"text_format":"3","workbook":"xlsx","n_sheets":2,"sheets":["Tabelle1","Tabelle2"],"not_rendered":{"defined_names":1},"read":"whole","date_system":"1900"}

{"sheet":"Tabelle1","index":0,"n_rows":55,"n_cols":9,"rows_kept":55,"merged":[[4,0,4,1],[4,4,7,8],[12,1,12,8]]}
["Bestellformular Handapparate"]
["Version 3.0 (Stand 23.11.2023)"]
["Kontaktdaten"]
[]
["Kontaktperson (Name, Vorname)",{"$nulls":3},"Bitte schicken Sie das ausgefüllte Formular per E-Mail an:\nmono@ub.uni-stuttgart.de"]
["Telefonnummer"]
["Mailadresse"]
[]
["Institutskürzel",{"$nulls":3},"Bestellvolumen",null,null,{"$f":"SUMPRODUCT(Tabelle1[Preis\n(soweit ermittelbar)],Tabelle1[Anzahl Exemplare])","v":{"v":125.36,"d":"125.36 €"}}]
[]
["Titel- und Bestelldaten"]
[]
[null,"Bitte füllen Sie die Tabelle so umfassend wie möglich aus. Für eine schnelle Bearbeitung ist die Bibliothek auf genaue Daten angewiesen. Sollten von der Bibliothek ermittelte Preise deutlich von Ihren Angaben abweichen, wird Rücksprache gehalten. Dies geht nur, wenn Sie die von Ihnen ermittelten Preise angeben.\n\nDie auf Verlagsseiten und bei Internethändlern (z.B. Amazon) angegebenen Preise für E-Books sind in der Regel die Preise für private Einzellizenzen, institutionelle Preise sind oft höher (je nach Anbieter und Titel Faktor 1,5 - 20). Falls Sie ein E-Book bestellen, geben Sie bitte eine für Sie akzeptable Höchstgrenze an."]
[]
["Lfd. Nummer","Verfasser\n(Autor, Herausgeber)","Titelinformationen","ISBN\n(soweit ermittelbar)","Preis\n(soweit ermittelbar)","Standort","Anzahl Exemplare","Fondsnummer\nUNI für reguläre Haushaltsmittel","Zusätzliche Angaben"]
[{"$f":"IF(OR(C16<>\"\",B16<>\"\"),1,\"\")","v":{"v":1,"d":"001"}},"Mustermann, Max; Musterfrau, Monika","Beispielbuch. 2. Aufl., Beispielverlag, 1990","978-0-123-45678-9",{"v":125.36,"d":"125.36 €"},"Handapparat Institut",1,"UNI"]
[{"$f":"IF(OR(C17<>\"\",B17<>\"\"),A16+1,\"\")","v":""}]
[""]
[""]
[""]
[""]
[""]
[""]
[""]
[""]
[""]
[""]
[""]
[""]
[""]
[""]
[""]
[""]
[""]
[""]
[""]
[""]
[""]
[""]
[""]
[""]
[""]
[""]
[""]
[""]
[""]
[""]
[""]
[""]
[""]
[""]
[""]
[""]
[""]
[""]

{"sheet":"Tabelle2","index":1,"n_rows":5,"n_cols":1,"rows_kept":5}
["Handapparat Institut"]
["Freihand UB"]
["Lesesaal UB"]
["Semesterapparat UB"]
["E-Book Lizenz"]